bitfinex/quotes_BTCUSD_20241226
["timestamp","ask_amount","ask_price","bid_price","bid_amount"]
[1735206546830,0.0001712,95679.0,95673.0,0.13068695]
[1735206547000,0.001,95674.0,95673.0,0.13768695]
[1735206547975,0.001,95674.0,95673.0,0.13868695]
[1735206548151,0.0011712,95674.0,95673.0,0.13868695]
[1735206548360,0.0011712,95674.0,95673.0,0.21377856]
[1735206548559,0.0011712,95674.0,95673.0,0.2127334]
[1735206548765,0.0011712,95674.0,95673.0,0.13764179]
[1735206548980,0.0011712,95674.0,95673.0,0.13868674]
[1735206550264,0.0011712,95674.0,95673.0,0.48541793]
[1735206550604,0.0011712,95674.0,95673.0,0.48437298]
[1735206552811,0.0011712,95674.0,95673.0,0.5883593]
[1735206553128,0.0011712,95674.0,95673.0,0.6883593]
[1735206553540,0.0011712,95674.0,95673.0,0.48437298]
[1735206553987,0.0011712,95674.0,95673.0,0.79234562]
[1735206554552,0.0011712,95674.0,95673.0,0.98030303]
[1735206555467,0.0011712,95674.0,95673.0,0.79234562]
[1735206555838,0.0001712,95679.0,95677.0,0.1]
[1735206556052,0.0001712,95679.0,95678.0,0.21007887]
[1735206556239,0.0001712,95679.0,95678.0,0.31302032]
[1735206557053,0.0011712,95679.0,95678.0,0.32002032]
[1735206557870,0.0011712,95679.0,95678.0,0.87073783]
[1735206558461,0.0001712,95692.0,95691.0,0.309006]
[1735206558736,0.0001712,95692.0,95691.0,0.81369232]
[1735206558937,0.0001712,95712.0,95694.0,0.373]
[1735206559254,0.01066568,95739.0,95709.0,0.1]
[1735206559419,0.02121538,95739.0,95712.0,0.1]
[1735206559626,0.02121538,95739.0,95726.0,0.208929]
[1735206560045,0.0105497,95739.0,95726.0,0.208929]
[1735206560292,0.078,95741.0,95728.0,0.208925]
[1735206560535,0.00051914,95739.0,95730.0,0.20892]
[1735206560681,0.00051914,95739.0,95732.0,0.208916]
[1735206560887,0.00051914,95739.0,95733.0,0.00104443]
[1735206561831,0.00151914,95739.0,95733.0,0.00104443]
[1735206562038,0.00151914,95739.0,95734.0,0.00104443]
[1735206562211,0.00051914,95739.0,95734.0,0.00104443]
[1735206562444,0.00151914,95739.0,95734.0,0.00104443]
[1735206563171,0.00786497,95741.0,95734.0,0.00104442]
[1735206563372,7.047e-05,95741.0,95734.0,0.00104442]
[1735206563604,7.047e-05,95741.0,95734.0,0.00404442]
[1735206564094,0.001,95739.0,95734.0,0.02534086]
[1735206564303,0.209902,95739.0,95734.0,0.00404442]
[1735206564507,0.208902,95739.0,95734.0,0.003]
[1735206564883,0.078,95737.0,95734.0,0.003]
[1735206565078,0.078,95737.0,95721.0,0.00104448]
[1735206565240,0.286905,95737.0,95722.0,0.208938]
[1735206565441,0.286905,95737.0,95734.0,0.003]
[1735206565703,7.047e-05,95741.0,95734.0,0.003]
[1735206565905,7.047e-05,95741.0,95735.0,0.00104443]
[1735206566112,7.047e-05,95741.0,95736.0,0.00104443]
[1735206566501,7.047e-05,95741.0,95731.0,0.208918]
[1735206566707,7.047e-05,95741.0,95734.0,0.004]
[1735206566917,7.047e-05,95741.0,95735.0,0.00104443]
[1735206567140,0.002,95737.0,95735.0,0.00104443]
[1735206567619,7.047e-05,95741.0,95730.0,0.00104443]
[1735206567852,7.047e-05,95741.0,95720.0,0.20894]
[1735206567853,0.10398632,95740.0,95720.0,0.20894]
[1735206568028,0.15,95739.0,95721.0,0.0219385]
[1735206568227,0.10398632,95738.0,95736.0,0.003]
[1735206568461,0.208914,95733.0,95721.0,0.0219385]
[1735206568663,0.3222907,95731.0,95705.0,0.0936935]
[1735206568789,0.208955,95715.0,95705.0,0.0936935]
[1735206568992,0.078,95714.0,95700.0,0.5936935]
[1735206569195,0.00205734,95713.0,95701.0,0.21002874]
[1735206569399,0.00205734,95713.0,95701.0,0.00104474]
[1735206569609,0.00205734,95713.0,95710.0,0.208962]
[1735206569812,0.00205734,95713.0,95712.0,0.20896]
[1735206571022,0.00205734,95713.0,95712.0,0.20996]
[1735206571294,0.00205734,95713.0,95712.0,0.001]
[1735206572056,0.00205734,95713.0,95712.0,0.007]
[1735206572266,0.00205734,95713.0,95712.0,0.02964136]
[1735206572478,0.00205734,95713.0,95712.0,0.00804466]
[1735206572677,0.00222854,95713.0,95712.0,0.00804466]
[1735206574103,0.08042854,95713.0,95712.0,0.007]
[1735206577155,0.09094199,95713.0,95712.0,0.007]
[1735206583995,0.08042854,95713.0,95712.0,0.007]
[1735206584215,0.0783712,95713.0,95712.0,0.00494266]
[1735206584458,0.0783712,95713.0,95712.0,0.00502826]
[1735206586868,0.0783712,95713.0,95712.0,0.02642819]
[1735206587419,0.0783712,95713.0,95712.0,0.00502826]
[1735206588663,0.0001712,95713.0,95712.0,0.00502826]
[1735206592005,0.38921552,95713.0,95712.0,0.00502826]
[1735206593453,0.43801552,95713.0,95712.0,0.00502826]
[1735206593799,0.58801552,95713.0,95712.0,0.00502826]
[1735206595219,0.58901552,95713.0,95712.0,8.56e-05]
[1735206595580,0.53921552,95713.0,95712.0,0.0030856]
[1735206595791,0.53921552,95713.0,95712.0,8.56e-05]
[1735206596181,0.53921552,95713.0,95712.0,0.0030856]
[1735206601230,0.54021552,95713.0,95712.0,0.0030856]
[1735206601639,0.53921552,95713.0,95712.0,0.0030856]
[1735206604003,0.53921552,95713.0,95700.0,0.4942944]
[1735206604211,0.224453,95745.0,95738.0,0.1]
[1735206604412,0.224453,95745.0,95739.0,0.20503063]
[1735206604616,0.09335176,95741.0,95739.0,0.31288732]
[1735206604765,0.09335176,95741.0,95739.0,0.208901]
[1735206605744,0.10398632,95740.0,95739.0,0.14054025]
[1735206605898,0.16897003,95740.0,95739.0,0.14754025]
[1735206606095,0.34008071,95740.0,95739.0,0.14754025]
[1735206606298,0.59208071,95740.0,95739.0,0.14754025]
[1735206606502,0.527097,95740.0,95739.0,0.14754025]
[1735206606903,0.56053925,95740.0,95739.0,0.007]
[1735206607273,0.56053925,95740.0,95739.0,0.008]
[1735206607470,0.56053925,95740.0,95739.0,0.001]
[1735206607947,0.66552557,95740.0,95739.0,0.007]
[1735206608109,0.208951,95717.0,95702.0,0.00104474]
[1735206608312,0.10503531,95716.0,95712.0,0.0001712]
[1735206609076,0.31398831,95716.0,95712.0,0.0001712]
[1735206609496,0.15,95724.0,95712.0,0.0001712]
[1735206609697,0.1256907,95730.0,95712.0,0.0001712]
[1735206609698,0.15,95721.0,95712.0,0.0001712]
[1735206609899,0.52292031,95720.0,95712.0,0.0001712]
[1735206610530,0.52292031,95720.0,95712.0,0.0051712]
[1735206610745,0.52292031,95720.0,95712.0,0.0061712]
[1735206610973,0.52292031,95720.0,95712.0,0.0011712]
[1735206611163,0.52292031,95720.0,95712.0,0.0001712]
[1735206611367,0.31397731,95720.0,95712.0,0.0001712]
[1735206611772,0.31397731,95720.0,95712.0,0.0031712]
[1735206611975,0.31397731,95720.0,95712.0,0.0001712]
[1735206612129,0.31497731,95720.0,95712.0,0.0001712]
[1735206612329,0.31497731,95720.0,95712.0,0.0021712]
[1735206612559,0.31497731,95720.0,95712.0,0.0001712]
[1735206613482,0.10503531,95720.0,95712.0,0.0001712]
[1735206613692,0.10603531,95720.0,95712.0,0.0001712]
[1735206613893,0.10498632,95720.0,95712.0,0.0001712]
[1735206614096,0.10398632,95720.0,95712.0,0.0001712]
[1735206614499,0.10498632,95720.0,95712.0,0.0021712]
[1735206614678,0.10498632,95720.0,95712.0,0.0001712]
[1735206614878,0.10398632,95720.0,95712.0,0.0021712]
[1735206615315,0.10498632,95720.0,95712.0,0.0001712]
[1735206615514,0.10498632,95720.0,95712.0,0.0021712]
[1735206615743,0.10498632,95720.0,95712.0,0.0001712]
[1735206616044,0.10498632,95720.0,95712.0,0.0021712]
[1735206616474,0.10398632,95720.0,95712.0,0.0001712]
[1735206616893,0.001,95720.0,95712.0,0.2091302]
[1735206617272,0.15,95723.0,95712.0,0.2091302]
[1735206617498,0.15,95721.0,95712.0,0.2091302]
[1735206617635,0.25398632,95721.0,95712.0,0.0031712]
[1735206618000,0.25398632,95721.0,95712.0,0.0001712]
[1735206618368,0.25398632,95721.0,95712.0,0.0031712]
[1735206618574,0.25398632,95721.0,95712.0,0.0001712]
[1735206618811,0.10503531,95720.0,95712.0,0.0031712]
[1735206619109,0.10503531,95720.0,95712.0,0.0001712]
[1735206619513,0.10512091,95720.0,95712.0,0.0041712]
[1735206619897,0.208947,95718.0,95712.0,0.0041712]
[1735206620058,0.31293332,95718.0,95712.0,0.0001712]
[1735206620465,0.10398632,95718.0,95712.0,0.0001712]
[1735206620839,0.52293331,95717.0,95712.0,0.0001712]
[1735206621073,0.15,95714.0,95712.0,0.0001712]
[1735206621413,0.31399331,95713.0,95712.0,0.0001712]
[1735206621526,0.46294432,95713.0,95712.0,0.0001712]
[1735206621735,0.46294432,95713.0,95712.0,0.0031712]
[1735206621956,0.46294432,95713.0,95712.0,0.0001712]
[1735206622591,0.2520856,95720.0,95712.0,0.0001712]
[1735206622791,8.56e-05,95720.0,95712.0,0.0001712]
[1735206623004,0.001,95713.0,95712.0,0.0001712]
[1735206623239,0.001,95713.0,95712.0,0.0012159]
[1735206624701,0.001,95713.0,95712.0,0.0001712]
[1735206625539,0.001,95713.0,95712.0,0.0021712]
[1735206626365,0.001,95713.0,95712.0,0.2111312]
[1735206627704,0.001,95713.0,95712.0,0.0021712]
[1735206629498,6e-07,95720.0,95719.0,0.208944]
[1735206629711,6e-07,95720.0,95719.0,0.51293032]
[1735206629917,6e-07,95720.0,95719.0,0.68593032]
[1735206630090,0.09311009,95739.0,95738.0,0.308903]
[1735206630308,0.00024167,95741.0,95740.0,0.2]
[1735206630533,0.00024167,95741.0,95740.0,0.32803049]
[1735206630709,0.00024167,95741.0,95740.0,0.32698632]
[1735206631597,0.00024167,95741.0,95740.0,0.67390258]
[1735206631753,0.0001714,95751.0,95750.0,0.308877]
[1735206631960,0.0001714,95751.0,95750.0,0.41286332]
[1735206632783,0.0001714,95751.0,95750.0,0.42186332]
[1735206632984,0.0011714,95751.0,95750.0,0.32386332]
[1735206633184,0.0011714,95751.0,95750.0,0.31486332]
[1735206633478,0.0001714,95751.0,95750.0,0.217877]
[1735206633701,0.0011714,95751.0,95750.0,0.36048913]
[1735206634686,0.0011714,95751.0,95750.0,0.210877]
[1735206634887,0.0001714,95751.0,95750.0,0.208877]
[1735206635208,0.0011714,95751.0,95750.0,0.218877]
[1735206635586,0.0001714,95751.0,95750.0,0.226877]
[1735206635954,0.0011714,95751.0,95750.0,0.227877]
[1735206636657,0.0011714,95751.0,95750.0,0.019]
[1735206636888,0.0011714,95751.0,95750.0,0.04283235]
[1735206638660,0.0011714,95751.0,95750.0,0.02004425]
[1735206641350,0.0011714,95751.0,95750.0,0.019]
[1735206641778,0.10515772,95751.0,95750.0,0.019]
[1735206641934,0.25515772,95751.0,95750.0,0.019]
[1735206642138,0.25746621,95751.0,95750.0,0.018]
[1735206642347,0.264818,95751.0,95750.0,0.018]
[1735206642588,0.267818,95751.0,95750.0,0.018]
[1735206643009,0.15,95750.0,95741.0,0.0001712]
[1735206643170,0.208894,95742.0,95741.0,0.0001712]
[1735206643578,0.21116043,95742.0,95741.0,0.0001712]
[1735206644562,0.26356301,95742.0,95741.0,0.0001712]
[1735206644764,0.58854675,95742.0,95741.0,0.0001712]
[1735206644888,0.58854675,95742.0,95741.0,0.0021712]
[1735206645090,0.58854675,95742.0,95741.0,0.0001712]
[1735206645526,0.58854675,95742.0,95741.0,0.0021712]
[1735206645729,0.58854675,95742.0,95741.0,0.0001712]
[1735206645936,0.58954675,95742.0,95741.0,0.0001712]
[1735206646272,0.58954675,95742.0,95741.0,0.0021712]
[1735206646476,0.58854675,95742.0,95741.0,0.0021712]
[1735206646630,0.59154675,95742.0,95741.0,0.0021712]
[1735206647383,0.59154675,95742.0,95741.0,0.0001712]
[1735206647584,0.59354675,95742.0,95741.0,0.0001712]
[1735206649537,0.47014675,95742.0,95741.0,0.0001712]
[1735206651335,0.46514675,95742.0,95741.0,0.0001712]
[1735206651627,0.46514675,95742.0,95741.0,0.0021712]
[1735206652158,0.46514675,95742.0,95741.0,0.0001712]
[1735206652295,0.46514675,95742.0,95741.0,0.0031712]
[1735206654026,0.46523235,95742.0,95741.0,0.0031712]
[1735206654429,0.59253235,95742.0,95741.0,0.0031712]
[1735206654628,0.59253235,95742.0,95703.0,0.18748284]
[1735206654629,0.208958,95713.0,95703.0,0.18748284]
[1735206654839,0.208958,95713.0,95712.0,0.00069034]
[1735206655050,0.2111837,95713.0,95712.0,0.00069034]
[1735206657882,0.2121837,95713.0,95712.0,0.00069034]
[1735206658708,0.53630799,95713.0,95712.0,0.00069034]
[1735206659889,0.53730799,95713.0,95712.0,0.00069034]
[1735206660284,0.54578823,95713.0,95712.0,0.00069034]
[1735206661190,0.54478823,95713.0,95712.0,0.00069034]
[1735206661381,0.54578823,95713.0,95712.0,0.00069034]
[1735206662109,0.47465026,95713.0,95712.0,0.00069034]
[1735206664186,0.47365026,95713.0,95712.0,0.00069034]
[1735206664533,0.47465026,95713.0,95712.0,0.00069034]
[1735206664899,0.47365026,95713.0,95712.0,0.00069034]
[1735206665098,0.0022257,95713.0,95712.0,0.00069034]
[1735206665314,0.0042257,95713.0,95712.0,0.00069034]
[1735206665509,0.002,95713.0,95712.0,0.00069034]
[1735206665708,0.208937,95723.0,95712.0,0.00169034]
[1735206665964,0.00211901,95722.0,95712.0,0.00273503]
[1735206666176,0.001,95713.0,95712.0,0.00273503]
[1735206666499,0.001,95713.0,95712.0,0.21169503]
[1735206666713,0.001,95713.0,95712.0,0.21065034]
[1735206667055,0.001,95713.0,95712.0,0.00069034]
[1735206667252,0.001,95713.0,95712.0,0.00869034]
[1735206667675,0.41788,95721.0,95712.0,0.00069034]
[1735206667885,0.001,95713.0,95712.0,0.00869034]
[1735206669349,0.00309657,95713.0,95712.0,0.00869034]
[1735206670732,0.001,95713.0,95712.0,0.00869034]
[1735206671133,0.33787228,95713.0,95712.0,0.00869034]
[1735206671362,0.48787228,95713.0,95712.0,0.00869034]
[1735206673542,0.46804089,95713.0,95712.0,0.00069034]
[1735206673914,0.46904089,95713.0,95712.0,0.00069034]
[1735206674120,0.46504089,95713.0,95712.0,0.00069034]
[1735206674280,0.46804089,95713.0,95712.0,0.00069034]
[1735206674485,0.47104089,95713.0,95712.0,0.00069034]
[1735206674681,0.46504089,95713.0,95712.0,0.00069034]
[1735206674953,0.46804089,95713.0,95712.0,0.00069034]
[1735206675248,0.47004089,95713.0,95712.0,0.00069034]
[1735206676454,0.46704089,95713.0,95712.0,0.00069034]
[1735206677219,0.46604089,95713.0,95712.0,0.00069034]
[1735206677777,0.46604089,95713.0,95712.0,0.00169034]
[1735206681505,0.56977712,95713.0,95712.0,0.00169034]
[1735206681712,0.46604089,95713.0,95712.0,0.00169034]
[1735206687963,0.10708289,95713.0,95712.0,0.00169034]
[1735206688172,0.00309657,95713.0,95712.0,0.00169034]
[1735206691326,0.00309657,95713.0,95712.0,0.002735]
[1735206691539,0.001,95713.0,95712.0,0.00169034]
[1735206692328,0.3346307,95722.0,95712.0,0.00169034]
[1735206692329,0.00906513,95717.0,95712.0,0.00169034]
[1735206692535,0.001,95713.0,95712.0,0.00169034]
[1735206692671,0.18873531,95713.0,95712.0,0.00169034]
[1735206692874,0.19003127,95713.0,95712.0,0.00169034]
[1735206693484,0.36303127,95713.0,95712.0,0.00069034]
[1735206693726,0.46552011,95713.0,95712.0,0.00069034]
[1735206693940,0.46552011,95713.0,95712.0,0.00169034]
[1735206694101,0.46552011,95713.0,95712.0,0.00069034]
[1735206694671,0.46552011,95713.0,95712.0,0.00269034]
[1735206694846,0.46552011,95713.0,95712.0,0.00069034]
[1735206695227,0.46952011,95713.0,95712.0,0.00069034]
[1735206695613,0.47252011,95713.0,95712.0,0.00069034]
[1735206696023,0.46952011,95713.0,95712.0,0.00069034]
[1735206696444,0.47352011,95713.0,95712.0,0.00069034]
[1735206696806,0.46952011,95713.0,95712.0,0.00069034]
[1735206697025,0.47352011,95713.0,95712.0,0.00069034]
[1735206697233,0.46952011,95713.0,95712.0,0.00069034]
[1735206697447,0.37198228,95713.0,95712.0,0.00169034]
[1735206697651,0.36598228,95713.0,95712.0,0.00069034]
[1735206697999,0.37198228,95713.0,95712.0,0.00069034]
[1735206698394,1.60340628,95713.0,95712.0,3.4e-07]
[1735206698600,0.510184,95701.0,95700.0,0.4942944]
[1735206698804,0.86617032,95701.0,95700.0,0.49436487]
[1735206698982,0.8684456,95701.0,95700.0,0.49436487]
[1735206700065,0.8734456,95701.0,95700.0,0.49436487]
[1735206701325,0.8684456,95701.0,95700.0,0.49436487]
[1735206701650,0.8764456,95701.0,95700.0,0.49536487]
[1735206702144,0.8634456,95701.0,95700.0,0.49436487]
[1735206702280,0.8634456,95701.0,95700.0,0.49445047]
[1735206702883,0.8674456,95701.0,95700.0,0.49445047]
[1735206703772,0.8634456,95701.0,95700.0,0.49445047]
[1735206703981,0.8674456,95701.0,95700.0,0.49445047]
[1735206704733,0.8714456,95701.0,95700.0,0.49445047]
[1735206705097,0.96521471,95701.0,95700.0,0.49445047]
[1735206705635,1.95121575,95701.0,95700.0,0.49445047]
[1735206705883,1.94721575,95701.0,95700.0,0.49445047]
[1735206706089,1.95121575,95701.0,95700.0,0.47355147]
[1735206706232,1.95121575,95701.0,95700.0,0.39235389]
[1735206706434,1.44715575,95701.0,95700.0,0.37145489]
[1735206706636,1.44047675,95701.0,95700.0,0.37145489]
[1735206706843,1.49930675,95701.0,95700.0,0.37145489]
[1735206707268,1.50330675,95701.0,95700.0,0.37145489]
[1735206707685,1.49930675,95701.0,95700.0,0.37145489]
[1735206707888,1.48583675,95701.0,95700.0,0.37145489]
[1735206708314,1.61563705,95701.0,95700.0,0.37245489]
[1735206708512,1.60763705,95701.0,95700.0,0.37145489]
[1735206708728,1.61263705,95701.0,95700.0,0.37145489]
[1735206709113,1.60763705,95701.0,95700.0,0.37145489]
[1735206709440,1.61263705,95701.0,95700.0,0.37145489]
[1735206709643,1.56758205,95701.0,95700.0,0.37145489]
[1735206709774,1.57658205,95701.0,95700.0,0.37145489]
[1735206710203,1.56758205,95701.0,95700.0,0.37145489]
[1735206710443,1.53806205,95701.0,95700.0,0.37145489]
[1735206711026,1.47104305,95701.0,95700.0,0.37145489]
[1735206712170,1.44524275,95701.0,95700.0,0.37145489]
[1735206712962,1.44524275,95701.0,95700.0,0.35045489]
[1735206713162,1.17287005,95701.0,95700.0,0.35045489]
[1735206713564,2.20283505,95701.0,95700.0,0.35045489]
[1735206714730,2.20300625,95701.0,95700.0,0.35045489]
[1735206714860,2.12541525,95701.0,95700.0,0.35045489]
[1735206715771,2.10888425,95701.0,95700.0,0.35045489]
[1735206715967,2.08793725,95701.0,95700.0,0.35045489]
[1735206717038,2.08793725,95701.0,95700.0,0.32545489]
[1735206717597,1.96482725,95701.0,95700.0,0.32545489]
[1735206717798,1.90447225,95701.0,95700.0,0.32545489]
[1735206718853,1.90447225,95701.0,95700.0,0.27563383]
[1735206719073,1.90447225,95701.0,95700.0,0.25444218]
[1735206719297,1.90447225,95701.0,95700.0,0.20447407]
[1735206719492,1.90447225,95701.0,95700.0,0.06559987]
[1735206719611,1.90447225,95701.0,95700.0,0.01614846]
[1735206720100,1.90447225,95701.0,95674.0,8.56e-05]
[1735206720101,0.442241,95675.0,95674.0,8.56e-05]
[1735206720300,0.359106,95645.0,95644.0,0.09368722]
[1735206720455,0.46309232,95645.0,95644.0,0.09368722]
[1735206720801,0.46309232,95645.0,95631.0,0.0002]
[1735206720802,0.209121,95639.0,95637.0,0.09368722]
[1735206721191,0.00219598,95638.0,95637.0,0.09368722]
[1735206721401,0.15,95667.0,95638.0,0.0784]
[1735206721602,6.513e-05,95654.0,95646.0,0.209103]
[1735206721814,6.513e-05,95654.0,95647.0,0.12714539]
[1735206722846,0.209089,95653.0,95647.0,0.1261]
[1735206723044,6.513e-05,95654.0,95647.0,0.1261]
[1735206723879,0.00106513,95654.0,95647.0,0.1261]
[1735206724092,0.00106513,95654.0,95648.0,0.00104539]
[1735206724288,0.00106513,95654.0,95649.0,0.21014239]
[1735206724577,0.00106513,95654.0,95650.0,0.0807]
[1735206724711,0.00106513,95654.0,95651.0,0.00104529]
[1735206724915,0.00106513,95654.0,95653.0,0.209089]
[1735206725132,6.513e-05,95654.0,95653.0,0.209089]
[1735206725347,6.513e-05,95654.0,95651.0,0.209093]
[1735206725551,0.262,95675.0,95632.0,0.09368722]
[1735206725552,0.208999,95695.0,95679.0,0.209032]
[1735206725750,0.10503531,95694.0,95681.0,0.13]
[1735206726028,0.10503531,95694.0,95681.0,0.13104502]
[1735206726223,0.00208977,95693.0,95681.0,0.13104502]
[1735206726431,0.10607609,95693.0,95681.0,0.13]
[1735206726785,0.00208899,95692.0,95681.0,0.13]
[1735206726984,0.20902,95685.0,95681.0,0.13]
[1735206727208,0.209023,95683.0,95681.0,0.13]
[1735206727608,0.0020814,95682.0,95681.0,0.13]
[1735206728191,0.20904,95676.0,95673.0,0.0807]
[1735206728394,0.209043,95674.0,95671.0,0.0493]
[1735206728872,0.00210463,95673.0,95671.0,0.0493]
[1735206729086,0.209047,95672.0,95666.0,0.0807]
[1735206729227,0.418094,95672.0,95666.0,0.0807]
[1735206729578,0.209065,95664.0,95661.0,0.0493]
[1735206729732,0.10712792,95671.0,95661.0,0.0493]
[1735206729733,0.00208563,95663.0,95661.0,0.0493]
[1735206729938,0.209051,95670.0,95661.0,0.0493]
[1735206730135,0.00208563,95669.0,95661.0,0.0493]
[1735206730352,0.209056,95668.0,95666.0,0.007]
[1735206730717,0.31303732,95670.0,95666.0,0.00015619]
[1735206731132,0.00254516,95669.0,95666.0,0.00015619]
[1735206731384,0.209056,95668.0,95666.0,0.00015619]
[1735206731559,0.209056,95668.0,95666.0,0.00215619]
[1735206731758,0.00254516,95667.0,95666.0,0.00215619]
[1735206732651,0.00254516,95667.0,95666.0,0.00015619]
[1735206733076,0.00254516,95667.0,95666.0,0.00315619]
[1735206733350,0.11326482,95667.0,95666.0,0.00015619]
[1735206733555,0.11581095,95667.0,95666.0,0.00015619]
[1735206733733,0.10653245,95667.0,95666.0,0.00415619]
[1735206734387,0.10653245,95667.0,95666.0,0.00015619]
[1735206734988,0.10653245,95667.0,95666.0,0.00415619]
[1735206736981,0.10653245,95667.0,95647.0,8.56e-05]
[1735206736982,0.2091,95648.0,95647.0,8.56e-05]
[1735206737237,0.46562139,95648.0,95647.0,8.56e-05]
[1735206737494,0.54862139,95648.0,95647.0,8.56e-05]
[1735206737688,0.81070739,95648.0,95647.0,8.56e-05]
[1735206737929,0.91469371,95648.0,95647.0,8.56e-05]
[1735206738132,1.27169401,95648.0,95647.0,8.56e-05]
[1735206738335,0.209135,95632.0,95631.0,0.0002]
[1735206738541,0.71512132,95632.0,95631.0,0.00026513]
[1735206738715,0.71760526,95632.0,95631.0,0.00026513]
[1735206738914,0.7410962,95632.0,95631.0,0.00026513]
[1735206739128,0.9174445,95632.0,95631.0,0.00026513]
[1735206739372,0.9174445,95632.0,95631.0,1e-08]
[1735206739599,1.1357265,95632.0,95631.0,1e-08]
[1735206739822,1.1357265,95632.0,95601.0,0.09390032]
[1735206739823,0.359178,95612.0,95601.0,0.09390032]
[1735206740022,0.79499872,95612.0,95611.0,0.01052094]
[1735206740237,1.67077476,95612.0,95611.0,9.4e-07]
[1735206740434,0.86023876,95612.0,95611.0,9.4e-07]
[1735206741052,0.86123876,95612.0,95611.0,9.4e-07]
[1735206741258,0.359194,95605.0,95600.0,0.0029]
[1735206741486,1.58050509,95605.0,95604.0,0.00024165]
[1735206741690,1.57825109,95605.0,95604.0,0.00024165]
[1735206741869,1.58066113,95605.0,95604.0,0.00024165]
[1735206743401,1.58366113,95605.0,95604.0,0.00024165]
[1735206743832,0.47782985,95605.0,95604.0,0.00024165]
[1735206744371,0.48082985,95605.0,95604.0,0.00024165]
[1735206745576,0.47782985,95605.0,95604.0,0.00024165]
[1735206745790,0.47482985,95605.0,95604.0,0.00024165]
[1735206745994,0.48082985,95605.0,95604.0,0.00024165]
[1735206746196,1.33982517,95605.0,95604.0,0.00024165]
[1735206746398,1.52480117,95605.0,95604.0,0.00024165]
[1735206746601,1.52780117,95605.0,95604.0,0.00024165]
[1735206746782,1.52480117,95605.0,95604.0,0.00024165]
[1735206747133,1.55060147,95605.0,95604.0,0.00024165]
[1735206747344,1.40859347,95605.0,95604.0,0.00024165]
[1735206747563,0.64149415,95605.0,95604.0,0.00024165]
[1735206747804,0.53263015,95605.0,95604.0,0.00024165]
[1735206751231,0.48382985,95605.0,95604.0,0.00024165]
[1735206752428,0.47482985,95605.0,95604.0,0.00024165]
[1735206752891,0.48082985,95605.0,95604.0,0.00024165]
[1735206753525,0.48382985,95605.0,95604.0,0.00024165]
[1735206753733,0.33382985,95605.0,95604.0,0.00024165]
[1735206754519,0.43424924,95605.0,95604.0,0.00024165]
[1735206754720,0.33082985,95605.0,95604.0,0.00024165]
[1735206755102,0.47782985,95605.0,95604.0,0.00024165]
[1735206755726,0.48082985,95605.0,95604.0,0.00024165]
[1735206756130,0.48382985,95605.0,95604.0,0.00024165]
[1735206757708,0.48082985,95605.0,95604.0,0.00024165]
[1735206758105,0.48382985,95605.0,95604.0,0.00024165]
[1735206758312,0.47782985,95605.0,95604.0,0.00024165]
[1735206758538,0.48082985,95605.0,95604.0,0.00024165]
[1735206758746,0.47782985,95605.0,95604.0,0.00024165]
[1735206758990,0.58481617,95605.0,95604.0,0.00024165]
[1735206759174,0.48382985,95605.0,95604.0,0.00024165]
[1735206763974,0.58952985,95605.0,95604.0,6.5e-07]
[1735206765113,0.58652985,95605.0,95604.0,6.5e-07]
[1735206765371,0.58952985,95605.0,95604.0,6.5e-07]
[1735206765576,0.47782985,95605.0,95604.0,6.5e-07]
[1735206765760,0.48082985,95605.0,95604.0,6.5e-07]
[1735206766345,0.60781617,95605.0,95604.0,6.5e-07]
[1735206767165,0.60481617,95605.0,95604.0,6.5e-07]
[1735206767357,0.60781617,95605.0,95604.0,6.5e-07]
[1735206767562,0.60481617,95605.0,95604.0,6.5e-07]
[1735206767742,0.60781617,95605.0,95604.0,6.5e-07]
[1735206770642,0.50082985,95605.0,95604.0,6.5e-07]
[1735206770845,0.48082985,95605.0,95604.0,6.5e-07]
[1735206770992,0.47782985,95605.0,95604.0,6.5e-07]
[1735206771393,0.48082985,95605.0,95604.0,6.5e-07]
[1735206775340,0.48082985,95605.0,95604.0,8.625e-05]
[1735206775875,0.58498737,95605.0,95604.0,8.625e-05]
[1735206782476,0.57574788,95605.0,95604.0,8.625e-05]
[1735206783721,0.59874788,95605.0,95604.0,8.625e-05]
[1735206787333,0.91724188,95605.0,95604.0,8.625e-05]
[1735206787491,0.92669302,95605.0,95604.0,8.625e-05]
[1735206788117,0.92669302,95605.0,95588.0,0.09390032]
[1735206788118,0.1,95601.0,95588.0,0.09390032]
[1735206788279,0.1,95601.0,95588.0,0.00015632]
[1735206788280,0.15,95591.0,95588.0,0.00015632]
[1735206788649,0.15,95589.0,95588.0,0.00015632]
[1735206788787,0.25398632,95589.0,95588.0,0.00015632]
[1735206789007,0.25651003,95589.0,95588.0,0.00015632]
[1735206790455,0.25651003,95589.0,95588.0,0.00115632]
[1735206790663,0.25651003,95589.0,95588.0,0.00015632]
[1735206790867,0.27796744,95589.0,95588.0,0.00115632]
[1735206791346,0.30145838,95589.0,95588.0,0.00115632]
[1735206791528,0.31098144,95589.0,95588.0,0.00115632]
[1735206800119,0.31098144,95589.0,95588.0,0.00124192]
[1735206801809,0.2874905,95589.0,95588.0,0.00024192]
[1735206802023,0.2914905,95589.0,95588.0,0.00024192]
[1735206802601,0.2964905,95589.0,95588.0,0.00024192]
[1735206802803,1.1064585,95589.0,95588.0,0.00024192]
[1735206803011,1.0849585,95589.0,95588.0,0.00024192]
[1735206803207,0.67712282,95589.0,95588.0,0.00024192]
[1735206803820,0.86380182,95589.0,95588.0,0.00024192]
[1735206804669,0.81704872,95589.0,95588.0,0.00024192]
[1735206805461,0.92074872,95589.0,95588.0,0.00024192]
[1735206805663,0.359257,95576.0,95560.0,0.0485]
[1735206805869,0.48673426,95576.0,95560.0,0.0485]
[1735206806070,0.48922117,95576.0,95560.0,0.0485]
[1735206806671,0.46573023,95576.0,95560.0,0.0485]
[1735206807027,0.46673023,95576.0,95560.0,0.0485]
[1735206807589,0.46673023,95576.0,95575.0,0.00156752]
[1735206808144,0.46573023,95576.0,95575.0,0.00156752]
[1735206808378,0.46773023,95576.0,95575.0,0.00156752]
[1735206808793,0.46773023,95576.0,95575.0,0.00056752]
[1735206809126,0.46873023,95576.0,95575.0,0.00056752]
[1735206809306,0.56649934,95576.0,95575.0,0.00056752]
[1735206809730,0.56449934,95576.0,95575.0,0.00056752]
[1735206809935,0.56649934,95576.0,95575.0,0.00056752]
[1735206810581,0.56549934,95576.0,95575.0,0.00056752]
[1735206811093,0.56649934,95576.0,95575.0,0.00056752]
[1735206812254,0.47872532,95576.0,95575.0,0.00056752]
[1735206813622,0.47872532,95576.0,95575.0,0.00065312]
[1735206818012,0.57872532,95576.0,95575.0,0.00065312]
[1735206820851,0.69037932,95576.0,95575.0,0.00065312]
[1735206821856,0.57872532,95576.0,95575.0,0.00065312]
[1735206822079,0.47872532,95576.0,95575.0,0.00065312]
[1735206822283,0.57777415,95576.0,95575.0,0.00065312]